[Event "Early-Titled-Tuesday-Blitz-September-05-2023"]
[Site "Chess.com"]
[Date "2023.09.05"]
[Round "8"]
[White "GMWSO"]
[Black "qx4z"]
[Result "1-0"]
[WhiteElo "3060"]
[BlackElo "2823"]
[TimeControl "180+1"]
[EndTime "9:27:12 PDT"]
[Termination "GMWSO won by resignation"]

1. b3 {[%clk 0:02:40.1]} 1... e5 {[%clk 0:02:58.7]} 2. Bb2 {[%clk 0:02:38.3]}
2... Nc6 {[%clk 0:02:59]} 3. e3 {[%clk 0:02:38.9]} 3... Nf6 {[%clk 0:02:58.4]}
4. Bb5 {[%clk 0:02:38.1]} 4... e4 {[%clk 0:02:58.9]} 5. Ne2 {[%clk 0:02:26.9]}
5... a6 {[%clk 0:02:58.2]} 6. Bxc6 {[%clk 0:02:26.6]} 6... dxc6 {[%clk
0:02:59.1]} 7. O-O {[%clk 0:02:11.6]} 7... Bd6 {[%clk 0:02:57.8]} 8. Ng3 {[%clk
0:02:09.9]} 8... h5 {[%clk 0:02:57.3]} 9. f3 {[%clk 0:01:55.7]} 9... Bxg3 {[%clk
0:02:37.3]} 10. hxg3 {[%clk 0:01:55.6]} 10... Qd6 {[%clk 0:02:37]} 11. Bxf6
{[%clk 0:01:30.6]} 11... gxf6 {[%clk 0:02:36.9]} 12. fxe4 {[%clk 0:01:28.9]}
12... Bg4 {[%clk 0:02:14.7]} 13. Qe1 {[%clk 0:01:27.6]} 13... O-O-O {[%clk
0:02:15]} 14. Rf4 {[%clk 0:01:21.7]} 14... Rdg8 {[%clk 0:02:02.5]} 15. Nc3
{[%clk 0:01:11.1]} 15... h4 {[%clk 0:01:59.3]} 16. gxh4 {[%clk 0:01:11.2]} 16...
Qe5 {[%clk 0:01:14.9]} 17. Qf2 {[%clk 0:00:54.1]} 17... Be6 {[%clk 0:01:06.5]}
18. Kh2 {[%clk 0:00:29.7]} 18... Rg6 {[%clk 0:00:59.2]} 19. Rg1 {[%clk
0:00:28.1]} 19... Rg5 {[%clk 0:00:33.3]} 20. g3 {[%clk 0:00:26.2]} 20... Rg6
{[%clk 0:00:33.7]} 21. b4 {[%clk 0:00:23.3]} 21... a5 {[%clk 0:00:30.9]} 22. a3
{[%clk 0:00:23.1]} 22... Qg5 {[%clk 0:00:23.2]} 23. Rg2 {[%clk 0:00:18.7]} 23...
Qe5 {[%clk 0:00:18.5]} 24. Ne2 {[%clk 0:00:14.2]} 24... axb4 {[%clk 0:00:16.8]}
25. axb4 {[%clk 0:00:15.1]} 25... Qb2 {[%clk 0:00:16.3]} 26. Nd4 {[%clk
0:00:15.7]} 26... Qxb4 {[%clk 0:00:16.8]} 27. Rxf6 {[%clk 0:00:15.2]} 27... Rgg8
{[%clk 0:00:15.7]} 28. Nxe6 {[%clk 0:00:12.6]} 28... fxe6 {[%clk 0:00:16.6]} 29.
Rxe6 {[%clk 0:00:12.9]} 29... Qb2 {[%clk 0:00:16.7]} 30. d3 {[%clk 0:00:11.7]}
30... Rf8 {[%clk 0:00:17.2]} 31. Qe2 {[%clk 0:00:11]} 31... Qc1 {[%clk 0:00:17]}
32. Rf2 {[%clk 0:00:09.7]} 32... Rfg8 {[%clk 0:00:14.4]} 33. Rg2 {[%clk
0:00:06.2]} 33... Rf8 {[%clk 0:00:13.9]} 34. Rf2 {[%clk 0:00:03.7]} 34... Rd8
{[%clk 0:00:12.9]} 35. Ref6 {[%clk 0:00:03.2]} 35... Qb2 {[%clk 0:00:13]} 36.
Rf7 {[%clk 0:00:03.5]} 36... Qe5 {[%clk 0:00:11.5]} 37. Qg4+ {[%clk 0:00:03.6]}
37... Kb8 {[%clk 0:00:11.6]} 38. Qf4 {[%clk 0:00:04.5]} 38... Qa5 {[%clk
0:00:08.9]} 39. e5 {[%clk 0:00:05.1]} 39... Rhe8 {[%clk 0:00:06.1]} 40. d4
{[%clk 0:00:05.6]} 40... Qe1 {[%clk 0:00:06]} 41. Rf1 {[%clk 0:00:04]} 41... Qa5
{[%clk 0:00:06.1]} 42. Rf2 {[%clk 0:00:04.2]} 42... Qd5 {[%clk 0:00:06.7]} 43.
e6 {[%clk 0:00:03.7]} 43... Rc8 {[%clk 0:00:06.3]} 44. e7 {[%clk 0:00:03.6]}
44... Qe6 {[%clk 0:00:06.8]} 45. Qe5 {[%clk 0:00:03.8]} 45... Qd7 {[%clk
0:00:07]} 46. Rf8 {[%clk 0:00:03.5]} 46... Rxe7 {[%clk 0:00:06.9]} 47. Rxc8+
{[%clk 0:00:04.2]} 47... Kxc8 {[%clk 0:00:07.8]} 48. Rf8+ {[%clk 0:00:03.9]}
48... Qd8 {[%clk 0:00:08.7]} 49. Qxe7 {[%clk 0:00:03.5]} 1-0

[Event "Early-Titled-Tuesday-Blitz-September-05-2023"]
[Site "Chess.com"]
[Date "2023.09.05"]
[Round "8"]
[White "KNVB"]
[Black "gau248"]
[Result "0-1"]
[WhiteElo "2763"]
[BlackElo "2589"]
[TimeControl "180+1"]
[EndTime "9:27:13 PDT"]
[Termination "gau248 won by checkmate"]

1. d4 {[%clk 0:03:00.9]} 1... d5 {[%clk 0:02:59.6]} 2. Bf4 {[%clk 0:03:01.2]}
2... Nf6 {[%clk 0:02:56.8]} 3. e3 {[%clk 0:03:01.6]} 3... e6 {[%clk 0:02:57.4]}
4. Nf3 {[%clk 0:03:01.8]} 4... c5 {[%clk 0:02:56]} 5. c3 {[%clk 0:03:01.8]} 5...
Bd6 {[%clk 0:02:56.4]} 6. Nbd2 {[%clk 0:03:02.1]} 6... Qc7 {[%clk 0:02:56.7]} 7.
Bxd6 {[%clk 0:03:02.3]} 7... Qxd6 {[%clk 0:02:56.8]} 8. Ne5 {[%clk 0:03:03.2]}
8... Nbd7 {[%clk 0:02:55]} 9. f4 {[%clk 0:03:03.6]} 9... O-O {[%clk 0:02:52.9]}
10. Bd3 {[%clk 0:03:03.8]} 10... b6 {[%clk 0:02:51.8]} 11. O-O {[%clk
0:03:04.3]} 11... a5 {[%clk 0:02:52]} 12. Qe2 {[%clk 0:01:55.2]} 12... Bb7
{[%clk 0:02:40.8]} 13. Rad1 {[%clk 0:01:55.2]} 13... a4 {[%clk 0:02:34.4]} 14.
a3 {[%clk 0:01:55.4]} 14... Rfc8 {[%clk 0:02:11.2]} 15. g4 {[%clk 0:01:27.4]}
15... Nf8 {[%clk 0:02:08.2]} 16. g5 {[%clk 0:00:49.4]} 16... Ne4 {[%clk
0:02:06.7]} 17. Bxe4 {[%clk 0:00:43.9]} 17... dxe4 {[%clk 0:02:07.6]} 18. Ndc4
{[%clk 0:00:42.4]} 18... Qc7 {[%clk 0:02:00.3]} 19. dxc5 {[%clk 0:00:41.7]}
19... Qxc5 {[%clk 0:01:50]} 20. Nd6 {[%clk 0:00:28.5]} 20... Ba6 {[%clk
0:01:50]} 21. c4 {[%clk 0:00:14.9]} 21... Rc7 {[%clk 0:01:46.3]} 22. Rd4 {[%clk
0:00:12.2]} 22... f6 {[%clk 0:01:02.7]} 23. gxf6 {[%clk 0:00:05.9]} 23... gxf6
{[%clk 0:01:02.6]} 24. Ng4 {[%clk 0:00:04.5]} 24... Rg7 {[%clk 0:00:52.3]} 25.
Kh1 {[%clk 0:00:04.7]} 25... Nd7 {[%clk 0:00:33.6]} 26. Rg1 {[%clk 0:00:04.9]}
26... Rf8 {[%clk 0:00:29.1]} 27. Qg2 {[%clk 0:00:02.1]} 27... Kh8 {[%clk
0:00:24.7]} 28. Nh6 {[%clk 0:00:01.2]} 28... Rxg2 {[%clk 0:00:18.8]} 29. Rxg2
{[%clk 0:00:02.1]} 29... Qh5 {[%clk 0:00:08.7]} 30. Ndf7+ {[%clk 0:00:02.4]}
30... Qxf7 {[%clk 0:00:09.3]} 31. Nxf7+ {[%clk 0:00:02.7]} 31... Rxf7 {[%clk
0:00:10.2]} 32. Kg1 {[%clk 0:00:02.7]} 32... h5 {[%clk 0:00:08.1]} 33. Rd6
{[%clk 0:00:02.7]} 33... Bxc4 {[%clk 0:00:07.1]} 34. f5 {[%clk 0:00:02.6]} 34...
exf5 {[%clk 0:00:06.5]} 35. Kf2 {[%clk 0:00:02.8]} 35... Ne5 {[%clk 0:00:06.4]}
36. Rxb6 {[%clk 0:00:02.9]} 36... Ng4+ {[%clk 0:00:06.4]} 37. Kg3 {[%clk
0:00:01.9]} 37... Nxe3 {[%clk 0:00:06.8]} 38. Rf2 {[%clk 0:00:01.3]} 38... f4+
{[%clk 0:00:06.4]} 39. Kxf4 {[%clk 0:00:01.4]} 39... Nd5+ {[%clk 0:00:06.7]} 40.
Kf5 {[%clk 0:00:02.2]} 40... Nxb6 {[%clk 0:00:07.6]} 41. Rd2 {[%clk 0:00:02.6]}
41... Nd5 {[%clk 0:00:07.4]} 42. Kg6 {[%clk 0:00:02.5]} 42... Rg7+ {[%clk
0:00:07.5]} 43. Kh6 {[%clk 0:00:03.1]} 43... e3 {[%clk 0:00:07.9]} 44. Rd4
{[%clk 0:00:03.1]} 44... e2 {[%clk 0:00:06.8]} 45. Re4 {[%clk 0:00:03.6]} 45...
Rh7+ {[%clk 0:00:05.8]} 46. Kg6 {[%clk 0:00:02.8]} 46... Rg7+ {[%clk 0:00:05.9]}
47. Kh6 {[%clk 0:00:03]} 47... Rg8 {[%clk 0:00:06.3]} 48. h4 {[%clk 0:00:01.9]}
48... Nf4 {[%clk 0:00:06.2]} 49. Re7 {[%clk 0:00:02.3]} 49... Rg6# {[%clk
0:00:06.3]} 0-1

[Event "Early-Titled-Tuesday-Blitz-September-05-2023"]
[Site "Chess.com"]
[Date "2023.09.05"]
[Round "8"]
[White "rachidhuilda"]
[Black "topin8"]
[Result "0-1"]
[WhiteElo "2297"]
[BlackElo "2449"]
[TimeControl "180+1"]
[EndTime "9:27:13 PDT"]
[Termination "topin8 won by resignation"]

1. d4 {[%clk 0:03:00.9]} 1... Nf6 {[%clk 0:02:59.3]} 2. Bg5 {[%clk 0:03:00.6]}
2... e6 {[%clk 0:02:59]} 3. e4 {[%clk 0:02:57.6]} 3... h6 {[%clk 0:02:59]} 4.
Bxf6 {[%clk 0:02:57.5]} 4... Qxf6 {[%clk 0:02:59.9]} 5. c3 {[%clk 0:02:57.9]}
5... c5 {[%clk 0:02:56.2]} 6. d5 {[%clk 0:02:56.6]} 6... exd5 {[%clk 0:02:54.4]}
7. exd5 {[%clk 0:02:56.7]} 7... d6 {[%clk 0:02:54.6]} 8. Nf3 {[%clk 0:02:50.3]}
8... g6 {[%clk 0:02:49.5]} 9. Bb5+ {[%clk 0:02:42.1]} 9... Bd7 {[%clk
0:02:36.3]} 10. Qe2+ {[%clk 0:02:42.4]} 10... Qe7 {[%clk 0:02:28.9]} 11. Na3
{[%clk 0:02:40.7]} 11... a6 {[%clk 0:02:26.3]} 12. Bxd7+ {[%clk 0:02:26.3]}
12... Nxd7 {[%clk 0:02:27.2]} 13. Nc4 {[%clk 0:02:26.3]} 13... Qxe2+ {[%clk
0:02:17.2]} 14. Kxe2 {[%clk 0:02:26.5]} 14... b5 {[%clk 0:02:07.5]} 15. Ne3
{[%clk 0:02:26.6]} 15... Nb6 {[%clk 0:01:59.2]} 16. Rhe1 {[%clk 0:02:16]} 16...
Kd7 {[%clk 0:01:52.4]} 17. Kf1 {[%clk 0:02:13]} 17... Bg7 {[%clk 0:01:50.6]} 18.
Rad1 {[%clk 0:02:12.5]} 18... a5 {[%clk 0:01:43.4]} 19. h4 {[%clk 0:01:59.3]}
19... b4 {[%clk 0:01:41.1]} 20. Rc1 {[%clk 0:01:34.3]} 20... f5 {[%clk 0:01:09]}
21. Red1 {[%clk 0:00:58.4]} 21... Rhe8 {[%clk 0:00:58.8]} 22. Rd2 {[%clk
0:00:55.4]} 22... f4 {[%clk 0:00:51.2]} 23. Ng4 {[%clk 0:00:45.6]} 23... bxc3
{[%clk 0:00:30.8]} 24. bxc3 {[%clk 0:00:45.2]} 24... Nc4 {[%clk 0:00:31.3]} 25.
Re2 {[%clk 0:00:40]} 25... Rxe2 {[%clk 0:00:20.2]} 26. Kxe2 {[%clk 0:00:40.2]}
26... Re8+ {[%clk 0:00:19.7]} 27. Kd3 {[%clk 0:00:40.4]} 27... Nb2+ {[%clk
0:00:19.2]} 28. Kd2 {[%clk 0:00:39.7]} 28... Nc4+ {[%clk 0:00:12.9]} 29. Kd3
{[%clk 0:00:39.6]} 29... Nb6 {[%clk 0:00:13.4]} 30. c4 {[%clk 0:00:36.2]} 30...
Na4 {[%clk 0:00:09.5]} 31. Nd2 {[%clk 0:00:29.7]} 31... Nb2+ {[%clk 0:00:08.8]}
32. Kc2 {[%clk 0:00:23.7]} 32... h5 {[%clk 0:00:05.6]} 33. Nh2 {[%clk
0:00:19.8]} 33... Re2 {[%clk 0:00:05.8]} 34. Nf1 {[%clk 0:00:18.8]} 34... Rxf2
{[%clk 0:00:04.5]} 35. Kb3 {[%clk 0:00:15.8]} 35... Nd3 {[%clk 0:00:02]} 36. Rc2
{[%clk 0:00:15.6]} 36... Rxg2 {[%clk 0:00:01.9]} 37. a4 {[%clk 0:00:15.6]} 37...
Ne5 {[%clk 0:00:02]} 38. Rc3 {[%clk 0:00:14.6]} 38... Rf2 {[%clk 0:00:01.7]} 39.
Rh3 {[%clk 0:00:14.3]} 39... Ng4 {[%clk 0:00:02.1]} 40. Rh1 {[%clk 0:00:14.7]}
40... Ne3 {[%clk 0:00:02.3]} 41. Rg1 {[%clk 0:00:15.6]} 41... Nxf1 {[%clk
0:00:02.4]} 42. Rxg6 {[%clk 0:00:16.4]} 42... Rxd2 {[%clk 0:00:02.4]} 43. Rxg7+
{[%clk 0:00:16]} 43... Ke8 {[%clk 0:00:03]} 44. Rg6 {[%clk 0:00:16.1]} 44... Ne3
{[%clk 0:00:03.2]} 45. Re6+ {[%clk 0:00:17]} 45... Kf7 {[%clk 0:00:02.8]} 46.
Rxd6 {[%clk 0:00:17.5]} 46... Rd3+ {[%clk 0:00:03.7]} 47. Kb2 {[%clk 0:00:17.2]}
47... f3 {[%clk 0:00:04.2]} 48. Rd7+ {[%clk 0:00:14.9]} 48... Kf6 {[%clk
0:00:03.8]} 49. Rd6+ {[%clk 0:00:15.4]} 49... Ke5 {[%clk 0:00:04.1]} 50. Re6+
{[%clk 0:00:15.6]} 50... Kd4 {[%clk 0:00:04.5]} 51. Rf6 {[%clk 0:00:14.9]} 51...
Nxc4+ {[%clk 0:00:03.8]} 52. Kc2 {[%clk 0:00:15.2]} 52... Rc3+ {[%clk
0:00:03.8]} 53. Kd1 {[%clk 0:00:14.2]} 53... Kxd5 {[%clk 0:00:04.4]} 54. Rxf3
{[%clk 0:00:13.9]} 54... Rxf3 {[%clk 0:00:04.5]} 0-1

[Event "Early-Titled-Tuesday-Blitz-September-05-2023"]
[Site "Chess.com"]
[Date "2023.09.05"]
[Round "8"]
[White "Aswathchess"]
[Black "nrvignesh"]
[Result "1/2-1/2"]
[WhiteElo "2609"]
[BlackElo "2825"]
[TimeControl "180+1"]
[EndTime "9:27:18 PDT"]
[Termination "Game drawn - insufficient material"]

1. d4 {[%clk 0:03:00.9]} 1... Nf6 {[%clk 0:02:58.6]} 2. c4 {[%clk 0:03:00.5]}
2... e6 {[%clk 0:02:58.8]} 3. g3 {[%clk 0:03:00]} 3... a6 {[%clk 0:02:57.8]} 4.
Bg2 {[%clk 0:02:59.4]} 4... d5 {[%clk 0:02:57.8]} 5. Nf3 {[%clk 0:02:59.7]} 5...
dxc4 {[%clk 0:02:57.1]} 6. O-O {[%clk 0:03:00.4]} 6... Nc6 {[%clk 0:02:54.8]} 7.
a4 {[%clk 0:02:56]} 7... Rb8 {[%clk 0:02:54.3]} 8. Nbd2 {[%clk 0:02:53.9]} 8...
b5 {[%clk 0:02:53.8]} 9. axb5 {[%clk 0:02:49.6]} 9... axb5 {[%clk 0:02:54.7]}
10. Ne5 {[%clk 0:02:42.2]} 10... Nxe5 {[%clk 0:02:50.6]} 11. dxe5 {[%clk
0:02:43.1]} 11... Nd7 {[%clk 0:02:50.5]} 12. Ne4 {[%clk 0:02:21.6]} 12... Be7
{[%clk 0:02:45.4]} 13. f4 {[%clk 0:02:06.8]} 13... Bb7 {[%clk 0:02:44.4]} 14.
Qc2 {[%clk 0:02:02.6]} 14... O-O {[%clk 0:02:41]} 15. Rd1 {[%clk 0:02:02]} 15...
Qc8 {[%clk 0:02:41.1]} 16. Be3 {[%clk 0:02:01.6]} 16... Rd8 {[%clk 0:02:40.1]}
17. Kh1 {[%clk 0:01:53.6]} 17... g6 {[%clk 0:02:39.6]} 18. Rd2 {[%clk
0:01:31.6]} 18... Bd5 {[%clk 0:02:39]} 19. Rad1 {[%clk 0:01:29.8]} 19... Qb7
{[%clk 0:02:33.5]} 20. Rxd5 {[%clk 0:01:05.2]} 20... exd5 {[%clk 0:02:32.4]} 21.
Rxd5 {[%clk 0:01:06.1]} 21... Qxd5 {[%clk 0:02:22.4]} 22. Ng5 {[%clk 0:01:05.8]}
22... Nb6 {[%clk 0:02:09.1]} 23. Bxd5 {[%clk 0:01:00.9]} 23... Nxd5 {[%clk
0:02:10]} 24. Bf2 {[%clk 0:00:45.5]} 24... Bxg5 {[%clk 0:02:03.1]} 25. fxg5
{[%clk 0:00:46.4]} 25... Re8 {[%clk 0:02:02.5]} 26. Qe4 {[%clk 0:00:46.9]} 26...
c6 {[%clk 0:02:01.5]} 27. Kg2 {[%clk 0:00:46.9]} 27... Re6 {[%clk 0:02:01]} 28.
Bd4 {[%clk 0:00:46.6]} 28... Rbe8 {[%clk 0:02:01.4]} 29. h4 {[%clk 0:00:46.4]}
29... Ne7 {[%clk 0:01:58.6]} 30. g4 {[%clk 0:00:46.3]} 30... c5 {[%clk
0:01:55.5]} 31. Bxc5 {[%clk 0:00:43.4]} 31... Nc6 {[%clk 0:01:55.8]} 32. Bd4
{[%clk 0:00:33.8]} 32... Nxd4 {[%clk 0:01:55]} 33. Qxd4 {[%clk 0:00:34.7]} 33...
Rxe5 {[%clk 0:01:55.9]} 34. e3 {[%clk 0:00:27.5]} 34... Rxe3 {[%clk 0:01:53]}
35. h5 {[%clk 0:00:27.9]} 35... Re2+ {[%clk 0:01:46.3]} 36. Kf1 {[%clk
0:00:20.3]} 36... R2e4 {[%clk 0:01:44.2]} 37. Qf6 {[%clk 0:00:18.4]} 37... Re1+
{[%clk 0:01:41.5]} 38. Kg2 {[%clk 0:00:17.8]} 38... R8e2+ {[%clk 0:01:41.9]} 39.
Kf3 {[%clk 0:00:16.4]} 39... Re3+ {[%clk 0:01:28.2]} 40. Kf2 {[%clk 0:00:15.9]}
40... Re6 {[%clk 0:01:25.9]} 41. Qd8+ {[%clk 0:00:15.2]} 41... Re8 {[%clk
0:01:26.2]} 42. Qf6 {[%clk 0:00:14.9]} 42... R1e6 {[%clk 0:01:25.4]} 43. Qc3
{[%clk 0:00:14.8]} 43... Re2+ {[%clk 0:01:24.9]} 44. Kf3 {[%clk 0:00:14.7]}
44... gxh5 {[%clk 0:01:20.2]} 45. gxh5 {[%clk 0:00:14.4]} 45... h6 {[%clk
0:01:07.2]} 46. gxh6 {[%clk 0:00:09.9]} 46... R2e3+ {[%clk 0:01:06.6]} 47. Qxe3
{[%clk 0:00:10.6]} 47... Rxe3+ {[%clk 0:01:07.5]} 48. Kxe3 {[%clk 0:00:11.5]}
48... b4 {[%clk 0:01:08]} 49. Kd4 {[%clk 0:00:10.2]} 49... c3 {[%clk 0:01:08.5]}
50. bxc3 {[%clk 0:00:09.9]} 50... bxc3 {[%clk 0:01:09.4]} 51. Kxc3 {[%clk
0:00:10.8]} 51... Kh7 {[%clk 0:01:10]} 52. Kd4 {[%clk 0:00:11.3]} 52... Kxh6
{[%clk 0:01:10.6]} 53. Ke5 {[%clk 0:00:11.8]} 53... Kg5 {[%clk 0:01:06]} 54. h6
{[%clk 0:00:11.1]} 54... Kg6 {[%clk 0:01:05.4]} 55. h7 {[%clk 0:00:05.2]} 55...
Kxh7 {[%clk 0:01:05.3]} 56. Kf6 {[%clk 0:00:05.7]} 56... Kg8 {[%clk 0:01:05.6]}
57. Kf5 {[%clk 0:00:05.9]} 57... Kg7 {[%clk 0:01:06.1]} 58. Kg5 {[%clk
0:00:06.3]} 58... Kf8 {[%clk 0:01:06.7]} 59. Kf6 {[%clk 0:00:06.5]} 59... Ke8
{[%clk 0:01:06.8]} 60. Kf5 {[%clk 0:00:07]} 60... Ke7 {[%clk 0:01:07.7]} 61. Ke5
{[%clk 0:00:07.6]} 61... f6+ {[%clk 0:01:08.3]} 62. Kf5 {[%clk 0:00:08.5]} 62...
Kf7 {[%clk 0:01:09.2]} 63. Kf4 {[%clk 0:00:09]} 63... Ke6 {[%clk 0:01:09.9]} 64.
Ke4 {[%clk 0:00:09.6]} 64... f5+ {[%clk 0:01:10.6]} 65. Kf4 {[%clk 0:00:10.2]}
65... Kf6 {[%clk 0:01:11.5]} 66. Kf3 {[%clk 0:00:10.4]} 66... Ke5 {[%clk
0:01:12.4]} 67. Ke3 {[%clk 0:00:10.7]} 67... f4+ {[%clk 0:01:13]} 68. Kf3 {[%clk
0:00:11.2]} 68... Kf5 {[%clk 0:01:13.9]} 69. Kf2 {[%clk 0:00:11.6]} 69... Kg4
{[%clk 0:01:14.8]} 70. Kg2 {[%clk 0:00:11.9]} 70... f3+ {[%clk 0:01:15.5]} 71.
Kf2 {[%clk 0:00:12.2]} 71... Kf4 {[%clk 0:01:16.4]} 72. Kf1 {[%clk 0:00:12.5]}
72... Ke3 {[%clk 0:01:17.3]} 73. Ke1 {[%clk 0:00:12.8]} 73... Ke4 {[%clk
0:01:18.2]} 74. Kf1 {[%clk 0:00:11.7]} 74... Kf4 {[%clk 0:01:17.9]} 75. Kf2
{[%clk 0:00:11.9]} 75... Kg4 {[%clk 0:01:18.4]} 76. Kf1 {[%clk 0:00:12.4]} 76...
Kg5 {[%clk 0:01:19]} 77. Kf2 {[%clk 0:00:12.1]} 77... Kf4 {[%clk 0:01:19.6]} 78.
Kf1 {[%clk 0:00:12.2]} 78... Kg3 {[%clk 0:01:20.3]} 79. Kg1 {[%clk 0:00:12.4]}
79... f2+ {[%clk 0:01:21.2]} 80. Kf1 {[%clk 0:00:12.8]} 80... Kf4 {[%clk
0:01:22.1]} 81. Kxf2 {[%clk 0:00:13]} 1/2-1/2

[Event "Early-Titled-Tuesday-Blitz-September-05-2023"]
[Site "Chess.com"]
[Date "2023.09.05"]
[Round "8"]
[White "koncheto"]
[Black "SAInt_666"]
[Result "0-1"]
[WhiteElo "2533"]
[BlackElo "2704"]
[TimeControl "180+1"]
[EndTime "9:27:18 PDT"]
[Termination "SAInt_666 won by resignation"]

1. e4 {[%clk 0:02:06.9]} 1... c5 {[%clk 0:02:59.3]} 2. Nf3 {[%clk 0:02:06.7]}
2... d6 {[%clk 0:02:59.8]} 3. d4 {[%clk 0:02:07]} 3... cxd4 {[%clk 0:03:00.7]}
4. Nxd4 {[%clk 0:02:07.9]} 4... Nf6 {[%clk 0:03:01.3]} 5. f3 {[%clk 0:02:08.3]}
5... Nc6 {[%clk 0:03:00]} 6. c4 {[%clk 0:02:07.7]} 6... g6 {[%clk 0:02:59.8]} 7.
Nc3 {[%clk 0:02:05.4]} 7... Bg7 {[%clk 0:03:00.1]} 8. Be3 {[%clk 0:02:05.8]}
8... O-O {[%clk 0:03:00.7]} 9. Be2 {[%clk 0:02:06.1]} 9... Bd7 {[%clk
0:03:01.2]} 10. O-O {[%clk 0:02:06.1]} 10... Nxd4 {[%clk 0:03:00.1]} 11. Bxd4
{[%clk 0:02:07]} 11... a5 {[%clk 0:03:00.5]} 12. Qd2 {[%clk 0:02:06.2]} 12...
Bc6 {[%clk 0:03:00.6]} 13. Rfd1 {[%clk 0:02:05.6]} 13... Nd7 {[%clk 0:03:00.9]}
14. Be3 {[%clk 0:02:04.5]} 14... Nc5 {[%clk 0:02:58.6]} 15. Rac1 {[%clk
0:02:04.7]} 15... Be5 {[%clk 0:02:57.8]} 16. b3 {[%clk 0:02:03.4]} 16... e6
{[%clk 0:02:57.7]} 17. Rc2 {[%clk 0:01:50.1]} 17... Qh4 {[%clk 0:02:33.7]} 18.
g3 {[%clk 0:01:45.8]} 18... Qf6 {[%clk 0:02:25.5]} 19. Bg5 {[%clk 0:01:36.5]}
19... Qh8 {[%clk 0:02:16.4]} 20. Bf4 {[%clk 0:00:44]} 20... Qf6 {[%clk
0:02:05.3]} 21. Bg5 {[%clk 0:00:41.8]} 21... Qh8 {[%clk 0:02:05.4]} 22. Bf4
{[%clk 0:00:42.2]} 22... h5 {[%clk 0:01:50.7]} 23. Qe3 {[%clk 0:00:33.1]} 23...
Rfd8 {[%clk 0:01:37.8]} 24. Bxe5 {[%clk 0:00:26.9]} 24... Qxe5 {[%clk
0:01:38.7]} 25. f4 {[%clk 0:00:24.4]} 25... Qf6 {[%clk 0:01:31.4]} 26. e5 {[%clk
0:00:15.4]} 26... Qe7 {[%clk 0:01:31.7]} 27. Rcd2 {[%clk 0:00:12.5]} 27... d5
{[%clk 0:01:05.5]} 28. cxd5 {[%clk 0:00:11.8]} 28... exd5 {[%clk 0:01:06.2]} 29.
Nxd5 {[%clk 0:00:11.4]} 29... Bxd5 {[%clk 0:01:06.9]} 30. Rxd5 {[%clk
0:00:11.8]} 30... Rxd5 {[%clk 0:01:07.7]} 31. Rxd5 {[%clk 0:00:12.7]} 31... b6
{[%clk 0:01:08.6]} 32. Bc4 {[%clk 0:00:11.5]} 32... Rd8 {[%clk 0:01:04.5]} 33.
Qd4 {[%clk 0:00:10]} 33... Rc8 {[%clk 0:00:46.9]} 34. Rd6 {[%clk 0:00:10.4]}
34... Kh7 {[%clk 0:00:41.4]} 35. Rxb6 {[%clk 0:00:08.3]} 35... Rd8 {[%clk
0:00:41.1]} 36. Rd6 {[%clk 0:00:08.4]} 36... Rxd6 {[%clk 0:00:41.2]} 37. Qxd6
{[%clk 0:00:09.3]} 37... Qa7 {[%clk 0:00:41.8]} 38. Qd4 {[%clk 0:00:09]} 38...
Qc7 {[%clk 0:00:37.6]} 39. Bxf7 {[%clk 0:00:06.8]} 39... Nd7 {[%clk 0:00:20.3]}
40. Bc4 {[%clk 0:00:06.5]} 40... Nf8 {[%clk 0:00:20.2]} 41. Qd6 {[%clk 0:00:06]}
41... Qg7 {[%clk 0:00:19.6]} 42. Kg2 {[%clk 0:00:04.1]} 42... Kh6 {[%clk
0:00:18.2]} 43. Qd3 {[%clk 0:00:03.8]} 43... Qb7+ {[%clk 0:00:17.5]} 44. Qd5
{[%clk 0:00:03.9]} 44... Qc7 {[%clk 0:00:15.6]} 45. Qg8 {[%clk 0:00:03.7]} 45...
Qc6+ {[%clk 0:00:11.6]} 46. Bd5 {[%clk 0:00:02.8]} 46... Qc2+ {[%clk 0:00:11.4]}
47. Kh3 {[%clk 0:00:03.3]} 47... Qf5+ {[%clk 0:00:11.4]} 48. Kg2 {[%clk
0:00:03.6]} 48... Qc2+ {[%clk 0:00:12.1]} 49. Kh3 {[%clk 0:00:03.6]} 49... Qf5+
{[%clk 0:00:12.1]} 50. Kg2 {[%clk 0:00:04.2]} 50... Nh7 {[%clk 0:00:12.8]} 51.
Qd8 {[%clk 0:00:03.7]} 51... Qc2+ {[%clk 0:00:11.9]} 52. Kf3 {[%clk 0:00:04.2]}
52... Qd3+ {[%clk 0:00:12.3]} 53. Kf2 {[%clk 0:00:04.4]} 53... h4 {[%clk
0:00:12.7]} 54. Bc4 {[%clk 0:00:04.6]} 54... Qxd8 {[%clk 0:00:11.9]} 0-1